{"text_format":"1","workbook":"xlsx","n_sheets":2,"sheets":["الرئيسية","ورقة1"],"not_rendered":{"charts":0,"images":0,"macros":0,"external_links":0,"defined_names":3,"comments":0,"pivot_tables":0},"unopened":[],"bounds":{"document_bytes":16777216,"sheet_cells":100000,"rows_first":2000,"rows_last":500,"rows_between":2000,"halvings":0,"cell_chars":16384,"cell_head_chars":4096},"cells_cut":0,"cells_raw":0,"read":"whole","date_system":"1900"}

{"sheet":"الرئيسية","index":0,"n_rows":62,"n_cols":25,"rows_kept":62,"cut":false,"hidden":false,"merged":[[61,2,61,6],[59,2,59,6],[58,1,58,9],[0,0,0,9],[56,0,56,3],[57,1,57,8],[4,0,4,9],[3,2,3,9],[2,2,2,9],[1,2,1,3],[1,5,1,7],[1,9,1,10],[1,0,3,0],[60,2,60,6]]}
["نموذج تسجيل فواتير السلف لإدخالها في نظام ( مدار )",null,null,null,null,null,null,null,null,null,null,null,null,null,null,null,null,null,null,null,null,null,null,0.15,"مستهلك"]
[null,"أدخل رقم المستلم الوظيفي","0",null,"اسم المستلم",{"$f":"VLOOKUP(C2,ورقة1!$A$2:$B$869,2,0)","v":"اسم المستلم"},null,null,"رقم الجوال",null,null,null,null,null,null,null,null,null,null,null,null,null,null,0.05,"مستديم"]
[null,"نوع السلفة أو أسم المشروع",null,null,null,null,null,null,null,null,null,null,null,null,null,null,null,null,null,null,null,null,null,0]
[null,"الرقم الخاص","[RowNu] = ActiveCell.Row"]
["يمكنك الكتابة والتعديل في الخانات المحددة باللون الأخضر فقط"]
["م","أسم الصنف","الكمية","المبلغ الإفرادي","الإجمالي بدون ضريبة","نسبة الضريبة","مبلغ الضريبة","الإجمالي شامل الضريبة","نوع الصنف","رقم التعريف",null,2]
[1,"تسجيل اسم الصنف كما هو مسجل في الفاتورة",1,1,{"$f":"C7*D7","v":1},0.15,{"$f":"H7-E7","v":0.14999999999999991},{"$f":"E7+(E7*F7)","v":1.1499999999999999},"مستهلك"]
[2,"تسجيل اسم الصنف كما هو مسجل في الفاتورة",1,1,1,0.15,0.14999999999999991,1.1499999999999999,"مستهلك"]
[3,"تسجيل اسم الصنف كما هو مسجل في الفاتورة",1,1,1,0.15,0.14999999999999991,1.1499999999999999,"مستهلك"]
[4,"تسجيل اسم الصنف كما هو مسجل في الفاتورة",1,1,1,0.15,0.14999999999999991,1.1499999999999999,"مستهلك"]
[5,"تسجيل اسم الصنف كما هو مسجل في الفاتورة",1,1,1,0.15,0.14999999999999991,1.1499999999999999,"مستهلك"]
[6,"تسجيل اسم الصنف كما هو مسجل في الفاتورة",1,1,1,0.15,0.14999999999999991,1.1499999999999999,"مستهلك"]
[7,"تسجيل اسم الصنف كما هو مسجل في الفاتورة",1,1,1,0.15,0.14999999999999991,1.1499999999999999,"مستهلك"]
[8,"تسجيل اسم الصنف كما هو مسجل في الفاتورة",1,1,1,0.15,0.14999999999999991,1.1499999999999999,"مستهلك"]
[9,"تسجيل اسم الصنف كما هو مسجل في الفاتورة",1,1,1,0.15,0.14999999999999991,1.1499999999999999,"مستهلك"]
[10,"تسجيل اسم الصنف كما هو مسجل في الفاتورة",1,1,1,0.15,0.14999999999999991,1.1499999999999999,"مستهلك"]
[11,"تسجيل اسم الصنف كما هو مسجل في الفاتورة",1,1,1,0.15,0.14999999999999991,1.1499999999999999,"مستهلك"]
[12,"تسجيل اسم الصنف كما هو مسجل في الفاتورة",1,1,1,0.15,0.14999999999999991,1.1499999999999999,"مستهلك"]
[13,"تسجيل اسم الصنف كما هو مسجل في الفاتورة",1,1,1,0.15,0.14999999999999991,1.1499999999999999,"مستهلك"]
[14,"تسجيل اسم الصنف كما هو مسجل في الفاتورة",1,1,1,0.15,0.14999999999999991,1.1499999999999999,"مستهلك"]
[15,"تسجيل اسم الصنف كما هو مسجل في الفاتورة",1,1,1,0.15,0.14999999999999991,1.1499999999999999,"مستهلك"]
[16,"تسجيل اسم الصنف كما هو مسجل في الفاتورة",1,1,1,0.15,0.14999999999999991,1.1499999999999999,"مستهلك"]
[17,"تسجيل اسم الصنف كما هو مسجل في الفاتورة",1,1,1,0.15,0.14999999999999991,1.1499999999999999,"مستهلك"]
[18,"تسجيل اسم الصنف كما هو مسجل في الفاتورة",1,1,1,0.15,0.14999999999999991,1.1499999999999999,"مستهلك"]
[19,"تسجيل اسم الصنف كما هو مسجل في الفاتورة",1,1,1,0.15,0.14999999999999991,1.1499999999999999,"مستهلك"]
[20,"تسجيل اسم الصنف كما هو مسجل في الفاتورة",1,1,1,0.15,0.14999999999999991,1.1499999999999999,"مستهلك"]
[21,"تسجيل اسم الصنف كما هو مسجل في الفاتورة",1,1,1,0.15,0.14999999999999991,1.1499999999999999,"مستهلك"]
[22,"تسجيل اسم الصنف كما هو مسجل في الفاتورة",1,1,1,0.15,0.14999999999999991,1.1499999999999999,"مستهلك"]
[23,"تسجيل اسم الصنف كما هو مسجل في الفاتورة",1,1,1,0.15,0.14999999999999991,1.1499999999999999,"مستهلك"]
[24,"تسجيل اسم الصنف كما هو مسجل في الفاتورة",1,1,1,0.15,0.14999999999999991,1.1499999999999999,"مستهلك"]
[25,"تسجيل اسم الصنف كما هو مسجل في الفاتورة",1,1,1,0.15,0.14999999999999991,1.1499999999999999,"مستهلك"]
[26,"تسجيل اسم الصنف كما هو مسجل في الفاتورة",1,1,1,0.15,0.14999999999999991,1.1499999999999999,"مستهلك"]
[27,"تسجيل اسم الصنف كما هو مسجل في الفاتورة",1,1,1,0.15,0.14999999999999991,1.1499999999999999,"مستهلك"]
[28,"تسجيل اسم الصنف كما هو مسجل في الفاتورة",1,1,1,0.15,0.14999999999999991,1.1499999999999999,"مستهلك"]
[29,"تسجيل اسم الصنف كما هو مسجل في الفاتورة",1,1,1,0.15,0.14999999999999991,1.1499999999999999,"مستهلك"]
[30,"تسجيل اسم الصنف كما هو مسجل في الفاتورة",1,1,1,0.15,0.14999999999999991,1.1499999999999999,"مستهلك"]
[31,"تسجيل اسم الصنف كما هو مسجل في الفاتورة",1,1,1,0.15,0.14999999999999991,1.1499999999999999,"مستهلك"]
[32,"تسجيل اسم الصنف كما هو مسجل في الفاتورة",1,1,1,0.15,0.14999999999999991,1.1499999999999999,"مستهلك"]
[33,"تسجيل اسم الصنف كما هو مسجل في الفاتورة",1,1,1,0.15,0.14999999999999991,1.1499999999999999,"مستهلك"]
[34,"تسجيل اسم الصنف كما هو مسجل في الفاتورة",1,1,1,0.15,0.14999999999999991,1.1499999999999999,"مستهلك"]
[35,"تسجيل اسم الصنف كما هو مسجل في الفاتورة",1,1,1,0.15,0.14999999999999991,1.1499999999999999,"مستهلك"]
[36,"تسجيل اسم الصنف كما هو مسجل في الفاتورة",1,1,1,0.15,0.14999999999999991,1.1499999999999999,"مستهلك"]
[37,"تسجيل اسم الصنف كما هو مسجل في الفاتورة",1,1,1,0.15,0.14999999999999991,1.1499999999999999,"مستهلك"]
[38,"تسجيل اسم الصنف كما هو مسجل في الفاتورة",1,1,1,0.15,0.14999999999999991,1.1499999999999999,"مستهلك"]
[39,"تسجيل اسم الصنف كما هو مسجل في الفاتورة",1,1,1,0.15,0.14999999999999991,1.1499999999999999,"مستهلك"]
[40,"تسجيل اسم الصنف كما هو مسجل في الفاتورة",1,1,1,0.15,0.14999999999999991,1.1499999999999999,"مستهلك"]
[41,"تسجيل اسم الصنف كما هو مسجل في الفاتورة",1,1,1,0.15,0.14999999999999991,1.1499999999999999,"مستهلك"]
[42,"تسجيل اسم الصنف كما هو مسجل في الفاتورة",1,1,1,0.15,0.14999999999999991,1.1499999999999999,"مستهلك"]
[43,"تسجيل اسم الصنف كما هو مسجل في الفاتورة",1,1,1,0.15,0.14999999999999991,1.1499999999999999,"مستهلك"]
[44,"تسجيل اسم الصنف كما هو مسجل في الفاتورة",1,1,1,0.15,0.14999999999999991,1.1499999999999999,"مستهلك"]
[45,"تسجيل اسم الصنف كما هو مسجل في الفاتورة",1,1,1,0.15,0.14999999999999991,1.1499999999999999,"مستهلك"]
[46,"تسجيل اسم الصنف كما هو مسجل في الفاتورة",1,1,1,0.15,0.14999999999999991,1.1499999999999999,"مستهلك"]
[47,"تسجيل اسم الصنف كما هو مسجل في الفاتورة",1,1,1,0.15,0.14999999999999991,1.1499999999999999,"مستهلك"]
[48,"تسجيل اسم الصنف كما هو مسجل في الفاتورة",1,1,1,0.15,0.14999999999999991,1.1499999999999999,"مستهلك"]
[49,"تسجيل اسم الصنف كما هو مسجل في الفاتورة",1,1,1,0.15,0.14999999999999991,1.1499999999999999,"مستهلك"]
[50,"تسجيل اسم الصنف كما هو مسجل في الفاتورة",1,1,1,0.15,0.14999999999999991,1.1499999999999999,"مستهلك"]
["الإجمالي",null,null,null,{"$f":"SUM(E7:E56)","v":50},null,{"$f":"SUM(G7:G56)","v":7.5000000000000053},{"$f":"SUM(H7:H56)","v":57.49999999999995}]
[]
[null,"يرسل إلى البريد الإلكتروني التالي : aaalsalem@ksu.edu.sa بعد تعبئته."]
[null,null,"عبدالرحمن السالم"]
[null,null,"جامعة الملك سعود - كلية الصيدلة"]
[null,null,"للتواصل: 0555178727"]

{"sheet":"ورقة1","index":1,"n_rows":869,"n_cols":2,"rows_kept":869,"cut":false,"hidden":true,"merged":[]}
["رقم الملف","الإســـــــــــــــــــــــــم"]
[96873,"ابتسام بنت عمهوج بن شرار العتيبي"]
["95872","ابتسام خلف سعد المطيري"]
["10252","ابتسام سعد فهد الشدي"]
["11430","ابتسام عبدالرحمن محمد الجساس"]
["10940","ابتسام ناصر عبدالله السلطان"]
["10974","ابتهال سليمان العبدالله"]
["96344","ابتهال محمد عبدالعزيز الغيث"]
["34085","ابرار عوض عبدالله المطيري"]
["14717","ابراهيم احمد محمد العلى "]
["102233","ابراهيم الجيلاني ساليس"]
["95583","ابراهيم بن عبدالله بن فالح النفيعي العتيبي"]
["17041","ابراهيم سليمان عبدالله الخليفى "]
["20210","ابراهيم عبدالرحمن الجفالي"]
["26244","ابراهيم عبدالرحمن خليفه الرويس"]
[116926,"ابراهيم عبدالرزاق السويدان"]
[11767,"ابراهيم عبدالله ابراهيم السراء"]
["73231","ابراهيم علي محمد درويش"]
["70373","ابراهيم مصطفى عبدالفتاح الباجورى "]
["95542","اثير ناصر حامد محمد ينبعاوي"]
[23213,"احلام محمد عمر الحسيني"]
["77548","احمد بري"]
["94891","احمد بن مانع بن هادي ال شهي"]
["94893","احمد بن هادي بن محمد معشي"]
["30129","احمد جمعه محمد عبيد الله"]
["22649","احمد سعد ثبيت الشهرانى"]
["55890","احمد صديق على خليفه"]
[27687,"احمد صياح مزيد جعفري العنزي"]
["75394","احمد عبدالوهاب عبدالمجيد شهبه"]
["27392","احمد علي احمد ناحي الغامدي"]
["36260","احمد فاخر فايز الدمرداش"]
[24767,"احمد لا في دوجان العوفي"]
["23376","احمد محمد هليل شامان"]
[66169,"احمد محمود احمد العفيفى "]
["106510","احمد نديم نسيم الدين"]
["58828","احمد يعقوب مايت"]
["90030","ارم كمال الدين حسين الطاهر"]
["100108","اروى بنت صالح بن عبدالمحسن بن ناصر بن مفيريج"]
["95062","اروى بنت منصور بن عبيدالله المحمدي"]
["104545","اريج بنت يحي بن رشيد مؤذنه"]
["12278","اريج محمد عبدالله الطويل"]
["101927","ازمت علي خان"]
["18277","ازهر مصطفى محي الدين عرفه"]
["96209","اسماء بنت عبدالله بن على المقيل"]
["94897","اسماعيل بن حسين بن سالم ال قامس اليامي"]
["13548","اشرف فاروق محمود شاهين"]
["96515","اشواق بنت براهيم بن علي الدغيم"]
["105036","اشواق علي ابن معيوف الفدعاني العنزي"]
["106606","افضل حسين انتصار حسين"]
["115302","افنان العربي سليم عبدالرحمن"]
["97289","اكسيو   ونهوي "]
["24859","الاء احمد محمد العنتيت"]
["27440","الجازي سامي ابراهيم المزيد"]
["106810","الجوهره عبدالعزيز بن تركي بن سليمان التركي"]
["4281","الجوهره فالح مهدى الدوسرى"]
[93494,"الطاف خان اطهار"]
["100538","العنود بنت عبدالحميد مبروك حسن السماعيل"]
["14279","العنود صنهات برك المرشدي"]
[31911,"العنود محمد سعد الطلال"]
[76305,"امال السايح فضل ابو العلا"]
["75395","امانى زين العابدين محمود الشهيدى"]
["97214","اماني محمد بن مسلم الشويمان"]
["96832","امتنان بنت معلا بن ناقي اليحيوي الحربي"]
["6026","امل جميل ياسين فطاني"]
["92103","امل عبدالعزيز علي العجلان"]
["93397","امل عطا حمود السبيتي"]
["98563","امنه حسن على فقيهي"]
["97013","اميره ظافر عبدالله الشهري"]
["108874","اميمه محمد نور الجوهري"]
["96879","امينه عوض بن تركي بن الدلبحي العتيبي"]
["17521","اوس ابراهيم سليمان الشمسان"]
["103694","ايمان بنت يوسف بن حسين الجاسم"]
["79013","ايمان سعد السعيد عيسى"]
["93359","ايمان عبدالله محمد القرني"]
["12368","ايمان على عبدالله الدحيم"]
["38102","ايمان علي محمد التركي"]
[24994,"ايمان محمد راشد الفقيه"]
["70374","ايمن محمد جمال الدين احمد محمود "]
["95548","ايناس بنت عمر بن علي برناوي السباك"]
[127410,"ايهاب مصطفى سعد الزيات"]
["75156","ايهاب مصطفى سعد الزيات"]
["77821","إيناس أحمد زكريا حنفي"]
[74333,"إيهاب إبراهيم طه البدوي"]
["90062","أحمد حسن حسب الله بخيت"]
["91511","أحمد حسن حمد ارباب"]
[37259,"أحمد زويعل شطي العنزي"]
["91314","أحمد عبدالرحمن عبدالجليل أحمد"]
[121998,"أحمد عبدالعزيز التويجري"]
["104517","أريج عبدالله حمود التويجري"]
[null,"أسماء سامي العنزي"]
["98510","أشواق عثمان بن منصور أباحسين"]
["38509","أشواق علي عبدالعزيز الرومي"]
["93296","أعجاز أحمد غلام نبي غني"]
[91350,"أمجاد بنت فيحان بن عبدالعزيز بن لبده"]
["92316","أميرة عيسى عبد الرحمن العيسى"]
["94766","أميره محمد بن عويد العنزي"]
[null,"أنفال فهد بن دايل"]
["88249","أي أف أم مطيع الرحمن"]
["38510","آلاء علي عبدالعزيز الرومي"]
["113547","باسط لطيف جان"]
["36104","بدر احمد محمد مريشد"]
["94921","بدر بن حايف بن ماجد الدريعي الحربي "]
["24854","بدر سعود ابراهيم السعدى"]
["97866","بدور بنت بجاد بن صالح الحنتوشي العتيبي"]
["96079","بدور بنت سلمان بن مناور المطيري"]
["28319","برجس سمير صقار العنزى"]
["93739","برويز عالم شيخه"]
["93565","بسمه حامد صالح الفاجح"]
["28553","بسمه عبدالله حمدان العنزى"]
["8847","بسمه ناصر عبدالله الدوسري"]
["23426","بسمه يوسف يعقوب كنتاب"]
["94771","بشاير علي بن صالح العصفور"]
[11771,"بشرى توفيق محمد القضيب"]
["24743","بندر سمير حسن بلخي"]
["35594","بندر عبدالله المفرج"]
["29877","بهيه عبدالرحمن سعد الجبرين"]
["96502","بيان ابراهيم عبدالله العريفى"]
["109782","تبيان عمر محمد ميرغني"]
["28386","تركى عبدالعزيز على العواد"]
["100539","تغريد بنت صغير بن دحلان بن ناصر القوادي الشراري"]
["73629","تغريد عبده ابراهيم شحاته"]
["77783","تنوير احمد واني"]
["93390","تهاني إبراهيم محمد الخضيري"]
["10686","توفيق عبدالله سليمان الهويريني"]
["2180","توفيق على عمر النجار "]
["120652","توفيق علي عمر النجار"]
[76744,"تيد   مورتن "]
["71545","تيسير راشد اليعقوب المنيزل"]
["90653","ثامر حمد صالح البكيري"]
["32072","ثامر عبدالعزيز عبدالعزيز المنقور"]
["38929","جسار علي محمد السبيعي"]
[75807,"جمال الدين ابراهيم احمد هريسه"]
["73310","جمال عبدالحفيظ مصطفى مصطفى"]
["79520","جمال عبدالغني شاذلي احمد"]
["57101","جمال محمد محروس رماح"]
["5435","جميله ابراهيم احمد الهبدان"]
["5052","جميله احمد توفيق عايديه"]
["27406","جميله احمد عبدالرزاق السعيدان"]
["31936","جميله محمد ظافر الشهري"]
["84845","جهير محمد زيد المطيويع"]
["27403","جواهر حمد ضويحي القحطاني"]
["91679","جواهر فهد محمد الوايلي"]
["96897","جوزاء غازى ابن كميخ العتيبي"]
["24789","جوزاء فهد نايف السبهان"]
["27444","حاتم احمد محمد ابوالعز"]
[77792,"حاتم عبدالقادر عبدالعزيز محمد "]
["75695","حاتم مصطفى رضوان ابوحشيش "]
["114557","حازم احمد المرسى غبور"]
["34158","حامد عضيبان فارع السلمي"]
["93908","حسام فيصل مفضي الجبير"]
["30128","حسام محمد عبداللطيف البسام"]
["95573","حسن بن ابراهيم بن سليمان ادريس"]
["94820","حسين بن رضي بن احمد العبدالعال "]
["15361","حسين عبدالرحمن عبدالله العمر"]
["103666","حسين ناصر علي الهمامي"]
["28485","حصه احمد عبدالرحمن الكنهل"]
["96933","حصه محمد بن مسلم الشويمان"]
["38918","حصه مسفر مصلح المالكي"]
["94819","حمد بن عبدالرحمن بن محمد الثاري"]
[10909,"حمد ضويحى مجمش القحطانى "]
["21079","حمد على بدين الرشيدى"]
[7263,"حمد مبارك على الحنايا"]
["25080","حمد مسفر حمد القحطاني"]
["27391","حمود ذياب ساعد الضبيطي المطيري"]
[31774,"حمود مقبل راشد ابوسبيع السبيعي"]
["38013","حنان خالد هذال الغبيوي"]
["38956","حنان عوض محسن المالكي"]
["109674","حنان محمد حمد الشبل"]
["24179","حنان محمد سعد اليوسف"]
["27574","حنان يحيى عبدالله عاتى"]
["95540","حنين ابراهيم عبدالله بن شقيران"]
["25094","حنين سعود احمد مارنقا"]
[null,"حنين عبدالله المزروع"]
[90563,"خالد احمد سعد الهزاني"]
["94939","خالد بن محمد بن حسن العسيري"]
["16065","خالد سليمان ناصر الشامخ"]
["37098","خالد عبدالعزيز ابراهيم المفرج"]
[89845,"خالد عبدالله راشد اليحيى"]
[12289,"خالد عبدالله محمد الحسيني"]
["101553","خالد عبدالمحسن - الرشود"]
["27394","خالد عدنان ناصر البريكان"]
["9188","خالد محمد ابراهيم بن خرفي"]
["91057","خالد محمد المعتصم الزكري"]
["29876","خالده محمد ربحى الشنطى"]
["95459","خديجه بنت عمر بن احمد المساوي"]
["95472","خديجه محمد عباس برناوى"]
["100542","خلود عبدالامين حسن يامي"]
["101549","خليل ابراهيم محمد الخميس "]
["91767","خولة فهد سعد المفرج"]
["95134","خوله بنت خليف بن زنار الخريصي العنزي"]
["77572","خيرى محمد عبدالله زهير"]
["63190","د. راو مظفر على خان "]
["20842","دخيل الله على صالح الغامدى"]
["100548","دعاء بنت عبد الوهاب بن عبد الأله المطيع"]
["16296","دعاء حسن ابراهيم الشورى"]
["108968","دلال احمد ناصر الخلب"]
["92384","دلال علي سليمان الوهيبي"]
["26899","ديما عوض تركى التركى"]
["35327","ديمه خالد ابراهيم القدير"]
["27908","راشد سعد محمد الحديبى"]
["36123","راكان محمد العصاى"]
["104793","رانيه ابراهيم ناصر الجديد"]
["64440","رائد محمد عادل السهلى "]
["92015","رباب عبدالمنعم خليل الديب"]
["94472","رباب محمد عتيق الصريوفي"]
["66734","رجب ابراهيم مرسى سعيد "]
["111899","رحاب أحمد محمد علي"]
["95545","رحمه بنت احمد ابن ابوبكر ابن حسن الكشناوي"]
["78229","رشاد عبدالرحمن احمد الصلاحي"]
["35592","رغده حمزه محمد ابو طربوش"]
["93360","رفعه حقيب سالم العجمي"]
["100550","رقيه بنت فريد بن معتوق المبروك"]
["75501","رمزى احمد عبدالله مثنى"]
["104792","رنا ابراهيم ناصر الجديد"]
["91211","رنا عبدالغني خالد المطيري"]
["21789","رها سعود محمد اورفلي"]
["101678","روابي بنت علي بن تركي التركي"]
[30165,"روان انور حسين فتيحي"]
[122716,"روان فهد عبدالعزيز الزايدي"]
["98824","رويدا ناصر بن صالح بن علي عبدالرحمن الزغيبي"]
[119273,"رياض الله سعيد  أكبر "]
[103662,"رياض فيصل عبدالله الزهراني"]
["104998","ريان بن عبد الله بن إبراهيم المنصور"]
["91340","ريس الدين علي محمد"]
["99677","ريم ابراهيم رشيد بن مجلي"]
["12477","ريم ابراهيم محمد الوابلي"]
["105114","ريم سعود ابراهيم الطريري"]
["38511","ريم عبدالله عقيل الطيار"]
["27981","ريم محمد عبدالله ابوحجيل"]
["36127","ريما محمد جابر الشهرى"]
[26922,"ريهاف راضي طلال الفرج"]
["104216","زايد بن مجاهد بن عواد الوسيدي الحربي"]
["95206","زهراء بنت صادق بن جعفر الدار"]
["97907","زهره بنت عباس بن جعفر بن عباس الحكري"]
["99801","زهير عبد الرحمن سيف آل مطير القحطاني"]
[20209,"زياد سعود علي بن خثلان"]
["36424","زياد سليمان محمد الربيعه"]
["29884","زيد محمد زيد العشبان"]
["98480","زينب بنت حسين بن فرحان بن ليفان السبيعي العنزي"]
["36781","سارة سالم احمد شريف"]
[24919,"ساره ابراهيم روزى بخارى"]
["97633","ساره بنت توفيق بن عبدالله الرشيد"]
["91788","ساره سفر سعيد الدوسري"]
["35605","ساره سلطان عبدالله الحبيشى"]
["16425","ساره طارق عبدالمحسن الرشود"]
["100527","ساره عبدالرحمن حمد العسيمي"]
["92045","ساره عبدالله سعود بن طالب"]
[122296,"ساره محمد عبد الله الراجح"]
["24441","ساره محمد عبدالمحسن اللعبون"]
["115628","ساره مقرن فهد الربيع"]
[36246,"ساري ابراهيم صالح الصانع"]
[13867,"سالم صالح علي الرجيعي"]
["107279","سالمين دقيل عمر بابلغيث"]
["12612","سامى عبدالله حمد المنيع"]
["94950","سامي بن عبدالله بن عيضه العمري السفياني"]
[90041,"ساميه الحرير سالم الحبردي"]
["103657","ساميه بنت عبدالرزاق بن فوزي سوار"]
["38084","ساميه محمد عبدالله الشهري"]
["27407","سجى حميد ابراهيم المزروع"]
["102207","سرفارزا احمد محد احمد"]
["101564","سعد ابراهيم سعد العبيد"]
["88851","سعد سعيد سعد الشهراني"]
["39350","سعد فهد سعد المفرج"]
[95577,"سعود بن عبدالرحمن بن سعود السويداء"]
[95000,"سعيد عبدالله الغامدي"]
["24794","سعيد علي دليم ال شامر القحطاني"]
["88684","سعيد علي سيد"]
["93946","سفره عبدالله حمود البقمي"]
["105244","سلطان بن خالد بن بدر العسكر"]
["106219","سلطان بن سعود بن عبدالعزيز الموسى"]
["30859","سلطان حسين ابراهيم الهديب "]
["27415","سلطان سعد عبدالله المديميغ"]
["30999","سلطان عبدالله على العجلان "]
["15143","سلطان على عبدالله الشعلانى"]
["35583","سلطان محمد سليمان الربيعان "]
["36242","سلطان محمد عبدالعزيز الغدير"]
[30937,"سلطان محمد ناصر ال سليمان الشهري"]
["16303","سلمى صنهات برك سالم المرشدى"]
["95420","سلوى بنت محمد بن علي فلاته"]
["19992","سليم محمد سالم العصاى"]
["105784","سليمان بن عبد العزيز بن سليمان الجربوع"]
[92784,"سليمان صالح سليمان الحديثي"]
["7663","سليمان عبدالرحمن المطرودى"]
["11514","سليمان محمد سليمان الربيعان"]
["29926","سليمان محمد سليمان القعود"]
["78557","سمر عبدالعزيز أحمد عفيفي"]
["102164","سميره بنت عبدالله بن عيد بن حمدان القرعاوي الحويطي"]
["97293","سميره عبدالله بن علي الشهري"]
["100857","سميه بنت خالدبن صالح بن علي المديميغ"]
["96206","سميه ناصر محمد الصبيح"]
["95653","سهى بنت فائز بن عبدالحميد الغامدي"]
["34287","سؤدد يوسف ياسين الحزيمي"]
["54223","سيد   رفعت الله "]
["101945","سيد حسن محمد عوده"]
["77644","سيد رضوان احمد"]
["106245","سيد رفعت الله"]
["116322","سيد هداية الله رحمة الله"]
["11234","سيناء عبدالمحسن العقيل"]
["77602","شاغفته بروين"]
[78936,"شاكر خان  خان "]
["89448","شاكر دخيل زايد الشراري"]
["94370","شاهانا فاج خان داوود خان"]
["96633","شذى بنت سليمان عبدالعزيز محمد اليعيش"]
["10554","شذى محمد عادل المعصرانى"]
["24672","شروق محمد عبدالله الطويل"]
["84054","شريفه صالح عبدالله الدايود"]
["98647","شعاع عبدالرحمن عبدالعزيز الشايع"]
["82685","شماء حمدان سليمان الدوسرى"]
["93399","شيخه صبحي عبدالرزاق العوجان"]
["15379","شيخه محمد على السيف"]
["75128","شيرين محمد احمد محمود شحاته"]
["13294","صالح ابراهيم صالح القسومي"]
["94968","صالح بن علي بن صالح ال سالم الغامدي"]
["94991","صالح بن مهدي بن حمد بن نديل المحامض"]
["94809","صالح بن هادي بن محمد الحسني "]
["6531","صالح عبدالرحمن ابراهيم البخيت"]
["2179","صالح عبدالله عمر باوزير "]
[5125,"صالح عبدالله منصور السويح"]
["25592","صالح محمد صالح الكنعان"]
["35188","صالح محمد صنيدح النفيعى العتيبى"]
["26555","صالحه علي محمد جوخب"]
["73917","صبري محمد عبده عطيه"]
["116324","صديقي أكبر أنصاري"]
["95514","صفاء بنت علي بن حسن القحافي"]
["101405","صفاء بنت علي صالح الياسين"]
["5319","صلاح سالم محمد المدوح"]
["28952","صيفى راشد صيفى العطيات الشلالى"]
["66907","ضياء الدين زيدان شعبان"]
[72967,"طارق ابوالفضل محمد حسن "]
[94586,"طارق أحمد صبيح العطوي"]
["110156","طارق قبل عطية المطرفي"]
["22678","طارق محمد عبدالله الحواسي"]
["76807","طلال السمانى  الامام البشير "]
["94972","عادل بن سعد بن علي الحسيكي الحارثي"]
["71211","عادل رشاد احمد عبدالله "]
["72464","عادل شعبان عزب مرسى"]
[24766,"عادل علي بخيت الحويان"]
["26809","عادل فالح ال غيث"]
[94577,"عادل فتحي ابراهيم جريبي"]
["52769","عاطف محمد احمد شبل "]
["18823","عامر معيوف مخيمر العنزي"]
["94818","عايض بن محمد بن عائض آل جاري القرني"]
["94957","عايض بن محمد بن محيل الصواط"]
["35256","عائشه على عبدالله حسانى"]
["105111","عبد الرحمن بن سعيد بن عزيز ال مغرم الغامدي"]
[105284,"عبد الرحمن بن عبد العزيز بن ابراهيم المجحد"]
["77911","عبد العارف خان"]
["105007","عبد العزيز بن محمد بن عساف الفدعاني العنزي"]
["111600","عبد الله بن مبارك بن محمد الجميعه"]
["105291","عبد الله بن محمد بن عبد العزيز المهنا"]
["108732","عبد المجيد بن لافي بن نهار المخلفي الحربي"]
["101408","عبدالاله بن محمد بن رزق الله حارثي"]
[94368,"عبدالأحد شمشاد"]
[77712,"عبدالجليل السيد عمرو"]
["8890","عبدالحكيم عبدالعزيز  الماجد "]
["101528","عبدالرحمن ابراهيم ناصر المقبل"]
["7798","عبدالرحمن احمد سليمان الماجد"]
["95008","عبدالرحمن بن سعد بن نويجي الرحيلي"]
["97787","عبدالرحمن بن عبدالعزيز بن علي السالم"]
["15860","عبدالرحمن سلطان عبدالرحمن سلطان"]
["88361","عبدالرحمن عايض فيحان العتيبي"]
["24746","عبدالرحمن عبدالعزيز مهيزع المهيزع"]
["857","عبدالرحمن عبدالله عبدالمحسن المطرفى "]
[107231,"عبدالرحمن عبدالله عبدالمحسن المطرفي"]
["22647","عبدالرحمن عبدالله محمد كريرى"]
["36256","عبدالرحمن محمد صالح الوهيبي"]
[120825,"عبدالرحمن محمد عبدالرحمن الدبيس "]
["29925","عبدالرحمن محمد عبدالرحمن الشليل"]
["10377","عبدالرحمن محمد عبدالعزيز الغدير"]
[116927,"عبدالرحمن محمد عبدالمحسن العبيد"]
["1863","عبدالرحمن محمد عبدالمحسن العبيد "]
["92894","عبدالرحمن محمد علي الشمري"]
["94574","عبدالرحمن وراد جبر الرويلي "]
["115319","عبدالرحمن يحيى علي علي شريف"]
["12962","عبدالسلام عبدالرحمن الدرويش"]
["93261","عبدالعاطي عبدالعزيز شحات حسين"]
["94573","عبدالعزيز احمد فايز السبيعي"]
["94563","عبدالعزيز أحمد حسن عسيري "]
["95585","عبدالعزيز بن حمد بن على الصويلح"]
["95587","عبدالعزيز بن خالف بن سرور الظويفري المطيري "]
["94556","عبدالعزيز سعد على العقيفي"]
["37327","عبدالعزيز سعود عبدالله الحمد"]
["6975","عبدالعزيز عبدالرحمن السحيبانى"]
["10144","عبدالعزيز عبدالرحمن اليحيى"]
["36148","عبدالعزيز عبدالله عبدالعزيز بن مهوس"]
[12415,"عبدالعزيز محمد العيسى"]
["94561","عبدالعزيز محمد إبراهيم القحطاني"]
[24613,"عبدالعزيز محمد سعد ال سعد"]
["24656","عبدالعزيز محمد عبدالعزيز الباحوث"]
["27393","عبدالعزيز محمد عبدالعزيز الحصان"]
["94557","عبدالعزيز محمد معدي القحطاني"]
["15223","عبدالعزيز ناصر عبدالله المقبل"]
["94112","عبدالغفور عبدالمغيث عبدالجبار محمد "]
[58746,"عبدالفتاح عفيفى عبدالخالق"]
["73986","عبدالقادر البدوي عباس عاشور"]
["105122","عبدالقادر عبدالرحمن 0 الحيدر"]
["863","عبدالقادر عبدالرحمن 0 الحيدر "]
["22812","عبدالكريم هديان عطالله المطيرى"]
["2720","عبداللطيف احمد علي الضويلع ال غيهب"]
["35585","عبدالله ابراهيم المزيرعى"]
["121002","عبدالله بن توفيق بن عبدالله الهويريني"]
["95408","عبدالله بن حسن بن عبدالله ال دهيم القحطاني"]
["95021","عبدالله بن رفاعي بن وصل الشاطري المطيري"]
["95039","عبدالله بن عمر بن غصاب الحجري العنزي "]
["98439","عبدالله بن ناصر بن حويد العتيبي "]
[12974,"عبدالله حسن عبدالله العمراني"]
[15950,"عبدالله حماد عبيد الحماد"]
["89639","عبدالله حمد ابراهيم الزير"]
[89465,"عبدالله خالد عبدالله الشميمري"]
["88506","عبدالله رجاء علي الشملاني"]
["28966","عبدالله زيد سيف المشارى"]
[23497,"عبدالله سعد عبدالكريم العبدالكريم"]
["24745","عبدالله صالح علي سلطان"]
["98509","عبدالله صالح مدالله الحامد"]
[37329,"عبدالله طايع عبدالله باوزير"]
["23309","عبدالله عاشى دعسان العنزى"]
["34166","عبدالله عبدالرحمن ابراهيم الخميس"]
["18839","عبدالله عبدالرحمن عبدالله المشارى"]
["36477","عبدالله عبدالرحمن نياز تركستاني"]
["15082","عبدالله عبدالعزيز  البدر "]
["17298","عبدالله عبدالعزيز سعد المعيلى"]
["92505","عبدالله عبدالعزيز محمد القحيز"]
["24698","عبدالله علي مبارك الدوسري"]
[97567,"عبدالله فايز حسن الاسمري"]
[109843,"عبدالله محمد السيد يوسف"]
["18377","عبدالله محمد سعد الاحمرى"]
[10885,"عبدالله محمد سعد المهيزع"]
["29952","عبدالله محمد عبدالله التركى"]
["23403","عبدالله محمد عبدالله الحصيني"]
["24765","عبدالله موسى عبدالله الحماد"]
["16009","عبدالله ناصر صالح الصياح"]
["95034","عبدالمجيد بن عبدالكريم بن بخيت الدهماني الثبيتي"]
["99646","عبدالملك بن عبدالرحيم بن عبدالله دربي"]
["98629","عبدالملك بن محمد بن عبدالله الطخيس "]
["20994","عبيد صنت شديد الروقى"]
[121463,"عبير بنت محمد بن نافع المضياني العنزي "]
["93853","عبير عبدالرحمن عبدالله المقرن"]
["112956","عبير عبدالكريم ابراهيم العبيداء"]
["95600","عبير عمر محمد احمد"]
[116734,"عثمان عبدالله الشبانه"]
["860","عثمان عبدالله عثمان الشبانه "]
["75137","عثمان يوسف مضوى محمد "]
["114579","عثمان يوسف مضوي محمد"]
["11770","عدنان احمد ابوبكر قاضي"]
["7478","عدنان جذلان الرحيلي الحربي"]
["91922","عزه عبدالله محمد الأسمري"]
["76614","عزه محمد سعيد زكريا"]
["92011","عزه محمد عامر المطيري"]
["95613","عزيزه بنت محمدبن عبدالمحسن بن عبدالله المحيسن"]
["95432","عساف بن عيسى بن صالح آل عبدالواحد الكثيري"]
["87510","عصام عز الدين حسن احمد علي"]
["77938","عطا الله فؤاد علي أحمد"]
["95045","عطيه بن سليمان بن سليم صدفان العطوي"]
["100544","عفاف بنت عيسى بن حسين بن علي السروج"]
["94806","عقاب بن حمود بن حجاب الحربي"]
["92771","عقيله عبد اللطيف حسن اعبيدان"]
["73029","علاء عبدالمؤنس عبدالعزيز محمد"]
["26590","على محمد على ابوسعيد"]
["20993","على محمد على عسيرى"]
["21053","على معتوق سلمان العايش"]
["2856","على منصور احمد عكاش"]
["78934","علي اختر عبدول"]
[105237,"علي بن عايد بن محمد البراك الرشيدي"]
["95051","علي بن مشرع بن جبار الرفاعي الغامدي"]
["23408","علي راشد سيف الحوشاني"]
["24531","علي سعيد علي القحطاني"]
["92272","علي صابر عبدالحميد محمد"]
["75352","علي عبدالرحمن الامام"]
[37262,"علي عبدالله علي الشمراني"]
["73619","علي علي حسن الجمل"]
[103358,"علياء سليمان بن علي الصالحي"]
["25077","علياء عبدالجبار احمد المؤمن"]
["95588","عماد بن حامد بن على البشري العمري "]
["94865","عماد بن سالم بن فوزان العوني المطيري"]
["24216","عماد عبدالله سعيد السرحانى"]
["103950","عمر ابراهيم عمر الفنتوخ"]
[2895,"عمر احمد عبدالله الذييب "]
["75818","عمر احمد محمد باسودان"]
["101830","عمر بن أحمد بن علي الجار الله "]
["36266","عمر عبدالرحمن سالم ال محمد"]
["54243","عمر محمد  ميرغنى "]
[121359,"عمر محمد علي صالح المرفدي "]
["111847","عمر محمد علي نعمان"]
["55817","عمر منصور محمد احمد"]
["78443","عمرو عبدالفتاح عماره محمد "]
["89456","عمشاء سعود مبرد السقياني"]
["98656","عهود بنت زيدبن عبدالعزيز بن سعود ال دهام"]
[75825,"عواد عبده رضوان سلامه"]
["23619","عواطف بكر راشد البكر"]
["30789","عواطف على محمد مغرم"]
["55939","عوض ابوالقاسم محمد عبدالقادر "]
["88834","عيسى محمد عيسى عسيرى"]
["93886","غاده ابراهيم عبدالعزيز ابوحيمد"]
["75032","غاده احمد فوزي زين الدين"]
["93607","غاده أسعد محمد عسيري"]
["98637","غاده بنت حمزه بن محمد ابوطربوش"]
["73266","غاده عبدالرحيم محمد باوزير"]
["37808","غاده عبدالعزيز صالح الحمود"]
["29878","غاده عبدالعزيز محمد الخميس"]
["30955","غاده عبدالله عبدالعزيز الحزيمي"]
["105137","غدير بنت فرحان بن زيد الاسعدي العتيبي"]
["29875","فاتن محمد على العضيب"]
["105296","فارس بن ابراهيم بن ريس الريس"]
["103707","فارس عبدالله عتيق المطيري"]
[13042,"فارس قاعد مسعود العنزي"]
["96279","فاطمة عبدالعزيز عبدالله الثميري"]
["88524","فاطمة مطلق مرزوق الدوسري"]
["103691","فاطمه احمد خليل فلاته"]
["95598","فاطمه بنت فرحان بن خلف بن جمعان التمام العنزي"]
["102304","فاطمه بنت محمد بن على بن مطلق الدليمان الشراري"]
["95465","فاطمه بنت نجيب بن محمد الخليفه"]
["94027","فاطمه صالح سليمان البلوي"]
["13328","فاطمه عبدالعزيز محمد العمري"]
["92883","فالح مشبب سعيد القحطاني"]
[93542,"فاياز شاكيل شاكيل احمد"]
["31823","فايزه احمد صالح بن جبير"]
["106135","فايزه بنت مانع بن سعيد سعد"]
["94954","فائزه عطاالله ابراهيم البلوي"]
["64462","فتح الرحمن محمد احمد الطيب"]
["99858","فراس بن عبدالله بن عجلان العجلان"]
["14268","فريد جلال محمد المهتدى "]
["95603","فريده بنت هليل بن علي بن مناور الزبيني العنزي"]
["95457","فضيله بنت عباس بن علي آل فاضل"]
[20919,"فضيله صفوق شويش العنزي"]
["94953","فضيه عطاالله ابراهيم البلوي"]
["95619","فلاح بن كنيدر بن سمر الفريجي الرويلي "]
[22780,"فلوه يحيى صالح القحطانى"]
[8889,"فهد ابراهيم عبدالرحمن الجنوبي"]
["95634","فهد بن سلامة بن عايش الكلبي الجهني "]
["110098","فهد راشد عبدالله آل عزمه"]
["4431","فهد سعد عبدالعزيز المفرج "]
["27252","فهد غازى الحميدى التوم العتيبى"]
["38912","فهد محمد حمد السبيعى"]
["95218","فواز بن علي بن عبدان الحميد الزهراني "]
[98083,"فواز فايز محمد الاسمري"]
["94139","فواز محمد سعيد المطيري"]
["77889","فود خورشيد محمد خورشيد سلفي"]
[101907,"فون هونغ كون  "]
["100551","في بنت سعيد بن خلف البركات"]
[38000,"في علي ناصر الكثيري"]
["92993","فياض أحمد شيخ"]
["29885","فيصل ابراهيم محمد بن هزاع"]
[104714,"فيصل امام موهد"]
["98157","فيصل بن عبيد بن محمد ابورقطه القحطاني"]
["21049","فيصل مبارك سليمان الغوينم"]
["76433","كازي محسن"]
["63988","كمال الدين الطيب  محمد "]
["108149","كمال الدين الطيب محمد"]
["60161","كمال الدين حسين الطاهر"]
["24696","لبنى عبدالله علي الجفالى"]
["116335","لبنى عصام سعيد المزين"]
[9711,"لبنى يوسف محمد عشرى"]
["100541","لطيفه بنت ناوي بن جعيثن بن شطي السبيعي العنزي"]
["99986","لمى فهد صالح الخضر"]
["29224","لمى فواز صبحى فرعون"]
["96876","لمياء بنت عبدالله بن زايد المطيري"]
[121462,"لمياء بنت محمد  عمر البكر "]
["13306","لمياء صالح عبدالله النعيم"]
["92964","لمياء محمد عبدالرحمن المشعل"]
["11131","لولوه احمد محمد الغامدى"]
["28100","لولوه عبدالعزيز محمد النمر"]
["14504","لولوه محمد عبدالله الخضيرى"]
["107584","ليلى بنت علوي بن خضر العوامي"]
["37338","ليلى عبدالرحمن عبدالله السعدى"]
["37339","ليلى محمد عيسى طميحى"]
["73732","ليلى محمد محمد حسن فضه"]
["69052","لينا فيصل راشد عاشور"]
["106034","ماجد بن صنات بن عزيز العضياني العتيبي"]
[18310,"ماجد علي محمد القنيه"]
["18782","ماجد محمد عبدالله الاسمرى"]
["24465","ماجد مسفر سحلى الشيبانى"]
["62912","مالك حسن انتظام اوقلو "]
["64700","مالك سعود احمد"]
["12396","ماهر احمد محمد باسكران"]
["6209","ماهر محمد على الجبل"]
["93073","متعب صالح عيسي الحربي"]
["30888","متعب محمد سعيد شاهر "]
["77903","مجده امام حسين هيبه"]
["77610","محسن   خورشيد "]
[68821,"محسن عبدالمنعم بيومي"]
["2181","محمد ابراهيم طلب الحسان "]
["87479","محمد ابراهيم عطية عبداللطيف"]
["56247","محمد احمد محمد مخير"]
["0","اسم المستلم"]
["98327","محمد بن ابراهيم بن محمد المهنا"]
["88395","محمد بن ابراهيم بن محمد النامي"]
["95628","محمد بن احمد بن فيصل السراني "]
["100410","محمد بن راشد بن محمد الهزاني"]
["107308","محمد بن ساير بن محمد العلوي الحربي"]
["94674","محمد بن صالح بن جريبيع الزهراني"]
["94816","محمد بن عبد الله بن عتيق الحربي"]
["94689","محمد بن عبدالله بن احمد العمري "]
["95627","محمد بن فايز بن رده الربيعي"]
["96061","محمد بن فهد بن محمد السملق"]
["95144","محمد بن مطر بن مظهور الجنفاوي "]
["104136","محمد بن منصور بن صالح الحميد القحطاني"]
["2657","محمد جابر محمد اليمانى "]
[75693,"محمد جبر ابراهيم قاسم "]
["91441","محمد جمال عبدالمنعم حسن "]
[73700,"محمد حامد محمد العجمي"]
["17484","محمد حسن مصطفى الجوادى"]
["107232","محمد حمد محمد الصالح"]
["87540","محمد خالد برفيز خالد"]
["77809","محمد رايش محمد حليم"]
[93495,"محمد رشيد خان"]
["13037","محمد سالم خلف الدوسري"]
["105041","محمد سعد عبدالرحمن الحميد"]
["6303","محمد سعد عبدالرحمن الحميد "]
[27755,"محمد سعيد علي ال ثابت القحطاني"]
["12274","محمد سلطان محمد السلطان"]
[25120,"محمد سليمان ابراهيم السلمان"]
["112376","محمد سليمان علي الصالحي"]
["63976","محمد شميم  احمد "]
[87495,"محمد صبحي عبدالمحسن محمدغنام "]
["75586","محمد عباس ابراهيم حموده"]
["78975","محمد عباس علي حميد الدين"]
["6142","محمد عبدالرحمن سليمان المشعل "]
[24507,"محمد عبدالرحمن محمد السنيدي"]
["12123","محمد عبدالرحمن محمد العمر"]
["23494","محمد عبدالعزيز ابراهيم اليحيى"]
["35586","محمد عبدالعزيز الدرعان"]
[27797,"محمد عبدالعزيز محمد ال مبارك التميمي"]
["93102","محمد عبدالله احمد اليامي"]
["93907","محمد عبدالله علي ابوناصف"]
["93429","محمد عبدالله محمد عسيري"]
["90951","محمد علي  عبد الرحمن "]
[97471,"محمد علي محمد القنيه"]
["94633","محمد علي محمد المطوع"]
["74551","محمد فرج عبدالحليم عبدالله"]
["22651","محمد فرحان عليوى العنزى"]
["29880","محمد فهد حسين العجمي"]
["34656","محمد فهد عبدلله حوال"]
["89481","محمد ماطر عياده العنزي"]
["63129","محمد محبوب الدين احمد"]
["87652","محمد محمد اسماعيل يوسف"]
["72228","محمد محمد سيد احمد"]
["71851","محمد محمود السيد حفناوي"]
["76625","محمد محمود حافظ احمد"]
["87555","محمد محمود محمد محمد بدران"]
["37261","محمد مشاري عوض المطيري"]
["1844","محمد مطر زيد الحربى "]
["119989","محمد مطر زيد الحربي"]
["93072","محمد مفضي حمد العنزي"]
["5757","محمد ناصر سعود العريفي"]
[119398,"محمد نديم اشرف  محمد  اشرف"]
["109354","محمد نور علم"]
["74976","محمد وجيه زيدان عطوه"]
[121060,"محمد يحي عبدالله ال يحي "]
["77587","محمد يوسف محمد يعقوب "]
["72425","محمود البدرى عبدالمطلب عبدالرحمن "]
["66358","محمود نشات ناجي احمد"]
["116435","مد تابيش رحمان"]
["95595","مرام ابراهيم عبد الرحمن السويلم"]
["97601","مرام بنت ابراهيم بن عبدالعزيز بن عبدالله الشبري"]
["95610","مرام بنت شلاش بن مران الثابتي الشمري"]
["97366","مرام بنت صالح بن عبدالعزيز بن حمد التويجري"]
["95512","مرام بنت صويلح بن عساج بن مناكد السويلمي العنزي"]
["97840","مرام بنت صياح بن عويد بن مسعد الدهمشي العنزي"]
["13776","مرزوق محمد سعود المبارك"]
[119583,"مروان  عبدالرحمن بن سليمان الرشيد"]
["32024","مروه محمد عبدالله السمهري"]
["101938","مريم بنت عبدالله بن علي الزاهر"]
["95642","مريم بنت على بن عبدالله السعيد"]
["95927","مريم حمد بن عبدالهادي المخلفي الحربي"]
[27693,"مساعد عبدالله سليمان الخليف"]
[27417,"مساعد علي دريعي الحدب الشمري"]
["95523","مستوره بنت هديب بن خلف بن غضبان المسعودي الشمري"]
["77872","مسرات امينه حيدر"]
["120952","مشاري عبدالعزيز سليمان الفريح"]
["95462","مشاعل بنت منصور بن صالح الظاهري"]
["92665","مشاعل عبدالعزيز صالح المقبل"]
["92346","مشاعل عبدالله سعود بن طالب"]
["37042","مشاعل غانم فاران العنزي"]
["88540","مشتاق أحمد أنصاري"]
["114704","مشعان بن لافي بن عماش الدليمي"]
["99491","مشعل بن ناجي بن عوض بديوي "]
[24515,"مشعل مطني عيد المطيري"]
["78140","مصطفى سيد محمد أحمد"]
["54242","مصطفى عمر  خالد "]
[76082,"مصطفى محمد سليمان غراب "]
["74611","مصطفى محمد محمود ابوالنجا طايل "]
["100161","مصلحه خليفه بن سعد السلمي"]
["77835","مظفر اقبال أبو ظفر"]
["77782","معشوق احمد بهات"]
["95333","مقبول بن مريف بن غظيف الهتاهته العمري"]
["104520","منال بنت سعد بن عبدالله بن جمعه"]
["36170","منال عبدالله محمد العبدان"]
["75566","منال عبدالمجيد العوضى الجندى"]
["94048","منال مصلح ثاني العنزي"]
["77545","منصور آدم محمود محمد"]
["39761","منصور سليمان ابراهيم السعيد"]
["26277","منصور صالح المتوزي"]
["94927","منوه بنت مشعل بن عيسى بن عفيف الغيثيي الدوسري"]
["95599","منى بنت دحام بن لواح بن عاشق السلطاني العنزي"]
["95226","منى بنت عبد القادر عثمان عبد الله فلاته"]
["102469","منى بنت فهد بن حمد بن فهد البسام"]
["92051","منى عبدالله سعود بن طالب"]
["102445","منى عيسى علي خويري"]
["70856","منى محمد ابوالفتوح قدرى الخطيب"]
["12713","منى محمد ظافر الشهرى"]
["75138","منير ابراهيم محمد حسين"]
["75613","منير محمد محمد سالم بخيت"]
["95271","منيره بنت اسماعيل بن حمد مباركي"]
["96829","منيره بنت جارالله بن سعيد القحطاني"]
["101592","منيره بنت علي بن عبدالله العسيري "]
["100536","منيره بنت ناصر بن معتق الشهراني"]
["39033","منيره محمد عبدالله الامير"]
["24921","منيره منصور سليمان الوهيبي"]
["105951","مها بنت عامر بن علي بن عامر الوطيباني المطيري"]
["10556","مها سلطان محمد المطيري"]
["98520","مها ظيف الله حاسن العمري"]
["36917","مها عبدالرحمن عبدالله الرويتع"]
["91159","مها عبدالعزيز حمد المشعل"]
["75027","مها عبدالعظيم حسن محمد"]
["106809","مها محمد مشبب عسيري"]
["99167","مها مسفر مصلح المالكي"]
["12640","مها مشعل عبدالله الرشيد"]
["104824","مهاه عبدالرزاق بن حميد بن سرد القعيشيش العنزي"]
[28756,"مورق راشد عبدالله الروقي العتيبي"]
["94833","موسى بن علي بن محمد ساري"]
["23334","موسى حسن على الشهرى"]
["18856","موسى محمد على قشيش"]
["99259","موضي بنت فهيدبن وليد بن فهيدالشويه السبيعي"]
["77904","موهد افتاب عالم"]
[93499,"موهد عبد الكلام"]
["94705","مؤيد بن محمد بن عبدالحميد الخطيب "]
["98167","مي بنت علي بن صالح العطيه"]
["11982","مي محمد عبدالله العقيل"]
["102284","ميان أحسان الحق كوكر ابن ميان"]
["14283","ميسون سعد عبدالله الغامدى"]
["6040","ناديه جميل سعيد حارس"]
[36456,"ناصر بدر عبدالله الصالح"]
["95531","ناصر بن مهدي بن محمد ال زمانان اليامي"]
["72413","ناصر ربيع احمد البرلسى "]
["30876","ناصر عبدالله ناصر السليم "]
["76230","ناصر علي صديقي"]
[93550,"ناظر الحق رضوان الحق"]
["94703","نافع بن مفيد بن نافع الشخص"]
["95455","نايف بن جميعان بن ظاهر الجابري"]
[95445,"نايف بن حميد بن حمدي الصاعدي"]
["105316","نايف بن سلامه بن مسلم البراك الرشيدي"]
["95633","نايف بن عليان بن صالح الخياري الرشيدي "]
["29788","نايف عبيد مشيلح الحربي"]
["24077","نايف فهد رشيد الحربى"]
["94073","نجلاء جاسم محمد الزيد"]
["92084","نجلاء عبدالله فايز الشهري"]
["92624","نجود دميثان صالح المطيرى"]
[31886,"نجود عبدالعزيز حمد التويجري"]
["100286","نداء فهد عثمان العثمان"]
["103140","ندى بنت سالم بن سليم الذياب"]
["91668","ندى داود سليمان بن نصار"]
["97848","ندى شقران سعد الملفي الرشيدي"]
["107238","نسرين بنت مصطفى بن صفوان النخلي"]
["95632","نشمى بن نغيمش بن عبدالرحمن المرواني الحربي "]
["64701","نصر يحيى خليل"]
["23410","نهله عقيل محمد العقيل"]
["26379","نهى عبدالله سليمان العلولا"]
["75551","نهى محمود سيد احمد سليمان"]
["111589","نواف بن سلمان بن عبدالعزيز المعيلي"]
["27754","نواف عبدالعزيز سالم السيف"]
["96871","نوال بنت جزاء بن عشيش بن عبيدالمخلفي الحربي"]
["99151","نوال بنت محمد بن عبدالله بن مصلح الدهيس المالكي"]
["95273","نوال طلال عبدالله العنزي"]
["12512","نوال محمد ابراهيم الرشيد"]
["100546","نوال محمد بن علي الجاهري الحربي"]
["9528","نوال مسيب عبدالله المسيب"]
["101928","نوال يحي حسين حكمي"]
["95266","نوره بنت احمد بن يحي بن سلمان مطارقي غزواني"]
["100577","نوره بنت زيد بن سيف المشاري"]
["100823","نوره بنت عبدالله بن مطلق بن ضاوي الاسعدي العتيبي"]
["96252","نوره بنت مرزوق بن حجيف المخلفي الحربي"]
["8367","نوره زومان عبدالله الزومان"]
["98431","نوره زيد سعد خترش"]
["100524","نوره عبدالله علي الخضير"]
["7897","نوره عثمان ناصر ابانمي"]
["93415","نوره عرفان عادل قلعجي"]
["24920","نوره عوده نيتول العنزي"]
["26278","نوره محمد باجد العصيمي"]
["97247","نوره محمد بن سعيد بن محمد الهاجري"]
["101231","نوره معجب محمد المسردي القحطاني"]
["78983","نوشاد علي"]
[119823,"نوف  محمد  ضيف الله العبود"]
["99346","نوف ابراهيم عبدالرحمن المشعل"]
[118685,"نوف بنت احمد بن محمد السالم"]
["95695","نوف بنت حسين بن عبدالله العييد"]
["102155","نوف بنت عبدالعزيز بن ابراهيم علي"]
["89497","نوف خالد محمد القحطاني"]
["92640","نوف سلطان محمد المطيرى"]
["32007","نوف طلال محمد الدامري"]
["11109","نوف محمد ابراهيم الرشيد"]
["16034","نوف محمد عبدالرحمن العوده"]
["99099","نوف محمد عبدالله المبيريك"]
["92114","نيدا نيار فارشوري"]
["73760","نيره احمد محمد عبدالباقي"]
["92442","هاجر عبدالرحمن رشيد الغانم"]
["73922","هاله ابوالفتوح عطيه سالم"]
["97818","هاله شبيب حمدان المطيري"]
["89597","هاني وجيه عبدالفتاح درويش"]
["115738","هبه عبدالعزيز عبدالله الشايع"]
["115307","هتان عدنان جذلان الحربي"]
["30289","هدى سالم عبدالله السالم"]
["11985","هدى سلوم سالم الاحمدى"]
["26054","هدى عبدالعزيز عبدالله العويرضى"]
["29865","هدى عبدالله خلف الراشد"]
["88498","هدير محمد ماهر شلبي"]
["95746","هديل عبد الرحمن عبد الله زامل"]
["23750","هديل عبدالرحمن محمد القفيدي"]
["94118","هديل عبدالكريم عيد الغبين"]
["106888","هزار ابراهيم يعقوب الخوري"]
[73295,"هشام حسن رضوان"]
["14718","هشام سعد سعدان الجضعي"]
["63148","هشام سليمان سليمان ابوعوده"]
["75042","هشام محمد قرشي"]
["55945","همايون هارون  ميرزا "]
[72491,"هناء عبدالمنعم محمود الصغير"]
["91081","هناء محمد عبدالمحسن التويجري"]
["30017","هناء محمد مطر الحربي"]
["76491","هناء نجيب عبدالسلام العجمى"]
["27958","هنادي حسين عبدالله عسيري"]
["98522","هند بنت ناصر بن هادي بن مفرج العتيبي"]
["26895","هند عبدالله رشيد الرشيدي"]
["92381","هند علي عبدالله الدخيل"]
["112415","هنوف عمر احمد الذييب"]
["110627","هيا ابراهيم حمد الجوهر"]
["19525","هيا محمد علي الملق"]
["94028","هياء محمد عبدالله الراجح"]
["23101","هيثم خالد محمد الربيعه"]
["93747","هيثم فادى محمد مصطفى"]
["100278","هيفاء بنت عبدالعزيز بن جاسر الخضيري"]
["100024","هيفاء بنت مبارك بن عبدالله الجوهر الدوسري"]
["30138","هيفاء شامي محمد الظاهري"]
["93342","هيله عبدالرحمن عبدالمحسن المغيره"]
["90900","واجد علي سيد"]
[92893,"وايل عبدالله سويلم العنزي"]
["98340","وائل بن عايض بن بريك الوصاري العتيبي"]
["104491","وائل بن علي بن إبراهيم دربشي"]
["73895","وائل حمدي سيد منسي"]
[27827,"وائل علي حسن مهدي"]
["102187","وائل مصطفى عبدالمجيد مصطفى"]
["98099","وجدان بنت عبدالكريم بن صالح القوسي"]
["104928","وجدان محمد عبدالرحمن الوسيدي"]
[93881,"وجه القمر ادريس"]
["37811","وداد شبيلي حسن صروي"]
["100655","وداد محمد ناصر بن هزاع"]
["75136","وضاح جمال احمد عثمان "]
["100779","وضحه فاتن بن شجاع العامري السبيعي"]
["95605","وفاء بنت بكر بن عمر فلاته"]
["97451","وفاء بنت علي عبدالله عبدالرحمن الدخيل"]
["39029","وفاء سعيد محمد العمري"]
["95678","ولاء ابراهيم محمد قره علي"]
["100540","ولاء بنت عبد الله بن سالم السبهان"]
["75111","ولاء محمد عبدالوارث مندور"]
["14364","وليد احمد ناجى ابوالغيث"]
["95340","وليد بن دوبح بن فرحه آل مسعود الغامدي "]
["92604","وليد ثابت ميزان الحربي"]
[87517,"وليد عبدالعظيم مصطفى حبيب"]
["15152","وليد عبدالله عبدالعزيز السلمي"]
["35593","وليد فهد صالح السبيعى "]
["98623","ياسر ذكار نائف البقمي"]
["115300","يحيى بن محمدكامل بن فريد توفيق"]
["24755","يزيد سليمان حمود الرثيع"]
["104102","يزيد محمد سعيد غواء"]
["78992","يلدز عبدالخالق احمد بسيوني"]
["116104","ين وينكي - -"]
["95115","يوسف بن اعبيد بن محمد الدسم الحربي "]
["98118","يوسف بن عبدالرحمن بن ابراهيم الحرابي"]
["39305","يوسف عبدالعزيز عبدالرحمن المحسن "]
[31712,"يوسف عبدالله محمد بن جردان"]
["6211","يوسف عبده عبدالله عسيري"]